fUSD/lending_fUSD_20251210
["ID","MTS","AMOUNT","RATE_DAILY","PERIOD"]
[398073789,1765357870949,-500.0,0.00014794,2]
[398073790,1765357870958,-500.0,0.00014794,2]
[398073791,1765357870966,-615.28,0.00014794,2]
[398073792,1765357870976,-500.0,0.00014794,2]
[398073793,1765357870985,-506.71973697,0.00014794,2]
[398073794,1765357870994,-500.0,0.00014794,2]
[398073795,1765357871003,-500.0,0.00014794,2]
[398073796,1765357871012,-992.07,0.00014794,2]
[398073797,1765357871020,-534.13,0.00014794,2]
[398073798,1765357871030,-500.0,0.00014794,2]
[398073799,1765357871039,-573.54,0.00014794,2]
[398073800,1765357871047,-500.0,0.00014794,2]
[398073801,1765357871056,-500.0,0.00014794,2]
[398073802,1765357871065,-500.0,0.00014794,2]
[398073803,1765357871074,-500.0,0.00014794,2]
[398073804,1765357871083,-500.0,0.00014794,2]
[398073805,1765357871093,-500.0,0.00014794,2]
[398073806,1765357871102,-500.0,0.00014794,2]
[398073807,1765357871111,-792.07,0.00014794,2]
[398073808,1765357871121,-583.08,0.00014794,2]
[398073809,1765357871130,-500.0,0.00014794,2]
[398073810,1765357871138,-500.0,0.00014794,2]
[398073811,1765357871147,-500.0,0.00014794,2]
[398073812,1765357871156,-500.0,0.00014794,2]
[398073813,1765357871165,-554.64,0.00014794,2]
[398073814,1765357871174,-187.11947792,0.00014794,2]
[398073815,1765357871183,-500.0,0.00014794,2]
[398073816,1765357871192,-1261.23,0.00014794,2]
[398073817,1765357871201,-500.0,0.00014794,2]
[398073818,1765357871210,-500.0,0.00014794,2]
[398073819,1765357871219,-508.91,0.00014794,2]
[398073820,1765357871229,-1138.44,0.00014794,2]
[398073821,1765357871239,-591.7,0.00014794,2]
[398073822,1765357871247,-627.85,0.00014794,2]
[398073823,1765357871256,-512.73,0.00014794,2]
[398073824,1765357871265,-605.85,0.00014794,2]
[398073825,1765357871274,-537.09,0.00014794,2]
[398073826,1765357871283,-500.0,0.00014794,2]
[398073827,1765357871292,-500.0,0.00014794,2]
[398073828,1765357871301,-1000.05,0.00014794,2]
[398073829,1765357871310,-500.0,0.00014794,2]
[398073830,1765357871319,-1106.55,0.00014794,2]
[398073831,1765357871328,-558.83,0.00014794,2]
[398073832,1765357871337,-500.0,0.00014794,2]
[398073833,1765357871346,-500.0,0.00014794,2]
[398073834,1765357871355,-533.48517342,0.00014794,2]
[398073835,1765357871364,-500.0,0.00014794,2]
[398073836,1765357871373,-500.0,0.00014794,2]
[398073837,1765357871382,-500.0,0.00014794,2]
[398073838,1765357871391,-713.37,0.00014794,2]
[398073839,1765357871400,-500.0,0.00014794,2]
[398073840,1765357871409,-551.54,0.00014794,2]
[398073841,1765357871419,-500.0,0.00014794,2]
[398073842,1765357871429,-500.0,0.00014794,2]
[398073843,1765357871438,-500.0,0.00014794,2]
[398073844,1765357871447,-500.0,0.00014794,2]
[398073845,1765357871456,-500.0,0.00014794,2]
[398073846,1765357871466,-500.0,0.00014794,2]
[398073847,1765357871474,-500.0,0.00014794,2]
[398073848,1765357871484,-500.0,0.00014794,2]
[398073849,1765357871493,-786.73,0.00014794,2]
[398073850,1765357871502,-614.88467164,0.00014794,2]
[398073851,1765357871511,-732.39,0.00014794,2]
[398073852,1765357871520,-500.0,0.00014794,2]
[398073853,1765357871529,-500.0,0.00014794,2]
[398073854,1765357871538,-500.0,0.00014794,2]
[398073855,1765357871547,-611.68,0.00014794,2]
[398073856,1765357871556,-500.0,0.00014794,2]
[398073857,1765357871565,-603.65,0.00014794,2]
[398073858,1765357871574,-500.0,0.00014794,2]
[398073859,1765357871583,-500.0,0.00014794,2]
[398073860,1765357871593,-237.5228232,0.00014794,2]
[398073861,1765357871602,-1170.79,0.00014794,2]
[398073862,1765357871611,-500.0,0.00014794,2]
[398073863,1765357871620,-304.03449343,0.00014794,2]
[398073864,1765357872064,-195.96550657,0.00014794,2]
[398073865,1765357872075,-500.0,0.00014794,2]
[398073866,1765357872085,-565.78,0.00014794,2]
[398073867,1765357872096,-549.2,0.00014794,2]
[398073868,1765357872107,-500.0,0.00014794,2]
[398073869,1765357872117,-238.53253014,0.00014794,2]
[398073870,1765357872664,-500.0,0.00013698,2]
[398073871,1765357872675,-500.0,0.00013698,2]
[398073872,1765357872685,-500.0,0.00013972,2]
[398073873,1765357872696,-500.0,0.00014246,2]
[398073874,1765357872707,-500.0,0.0001452,2]
[398073875,1765357872718,-261.46746986,0.00014794,2]
[398073876,1765357872728,-716.51,0.00014794,2]
[398073877,1765357872738,-500.0,0.00014794,2]
[398073878,1765357872747,-500.0,0.00014794,2]
[398073879,1765357872756,-500.0,0.00014794,2]
[398073880,1765357872765,-500.0,0.00014794,2]
[398073881,1765357872776,-422.42085123,0.00014794,2]
[398073882,1765357872787,-500.0,0.00014794,2]
[398073883,1765357872797,-339.32177097,0.00014794,2]
[398073884,1765357872807,-520.43,0.00014794,2]
[398073885,1765357872817,-500.0,0.00014794,2]
[398073886,1765357872828,-500.0,0.00014794,2]
[398073887,1765357872838,-500.0,0.00014794,2]
[398073888,1765357872849,-500.0,0.00014794,2]
[398073889,1765357872859,-562.69,0.00014794,2]
[398073890,1765357872868,-500.0,0.00014794,2]
[398073891,1765357872877,-500.0,0.00014794,2]
[398073892,1765357872886,-500.0,0.00014794,2]
[398073893,1765357872895,-500.0,0.00014794,2]
[398073894,1765357872905,-533.34,0.00014794,2]
[398073895,1765357872915,-500.0,0.00014794,2]
[398073896,1765357872924,-500.0,0.00014794,2]
[398073897,1765357872933,-594.5,0.00014794,2]
[398073898,1765357872942,-407.89133171,0.00014794,2]
[398073899,1765357872955,-92.10866829,0.00014794,2]
[398073900,1765357872964,-307.89133171,0.00014794,2]
[398073901,1765357872975,-192.10866829,0.00014794,2]
[398073902,1765357872985,-500.0,0.00014794,2]
[398073903,1765357872995,-604.78,0.00014794,2]
[398073904,1765357873004,-500.0,0.00014794,2]
[398073905,1765357873014,-1491.21,0.00014794,2]
[398073906,1765357873023,-722.63,0.00014794,2]
[398073907,1765357873033,-500.0,0.00014794,2]
[398073908,1765357873042,-500.0,0.00014794,2]
[398073909,1765357873051,-500.0,0.00014794,2]
[398073910,1765357873061,-500.0,0.00014794,2]
[398073911,1765357873070,-500.0,0.00014794,2]
[398073912,1765357873079,-870.4,0.00014794,2]
[398073913,1765357873089,-500.0,0.00014794,2]
[398073914,1765357873098,-553.62,0.00014794,2]
[398073915,1765357873107,-500.0,0.00014794,2]
[398073916,1765357873117,-242.01466613,0.00014794,2]
[398073917,1765357873127,-500.0,0.00014794,2]
[398073918,1765357873136,-500.0,0.00014794,2]
[398073919,1765357873146,-585.09,0.00014794,2]
[398073920,1765357873156,-500.0,0.00014794,2]
[398073921,1765357873166,-500.0,0.00014794,2]
[398073922,1765357873175,-500.0,0.00014794,2]
[398073923,1765357873185,-3462.62,0.00014794,2]
[398073924,1765357873194,-500.0,0.00014794,2]
[398073925,1765357873204,-500.0,0.00014794,2]
[398073926,1765357873213,-505.02,0.00014794,2]
[398073927,1765357873223,-500.0,0.00014794,2]
[398073928,1765357873232,-1142.85,0.00014794,2]
[398073929,1765357873242,-500.0,0.00014794,2]
[398073930,1765357873254,-500.0,0.00014794,2]
[398073931,1765357873264,-519.23,0.00014794,2]
[398073932,1765357873273,-602.53,0.00014794,2]
[398073933,1765357873283,-500.0,0.00014794,2]
[398073934,1765357873293,-620.14,0.00014794,2]
[398073935,1765357873302,-694.12,0.00014794,2]
[398073936,1765357873312,-500.0,0.00014794,2]
[398073937,1765357873321,-1170.78,0.00014794,2]
[398073938,1765357873330,-500.0,0.00014794,2]
[398073939,1765357873340,-500.0,0.00014794,2]
[398073940,1765357873350,-646.93,0.00014794,2]
[398073941,1765357873359,-500.0,0.00014794,2]
[398073942,1765357873369,-1555.98249169,0.00014794,2]
[398073944,1765358736837,258.57436899,0.00013906,7]
[398073945,1765358799348,193.15929,0.00014,4]
[398073951,1765358965141,-150.0,0.00012304,2]
[398073952,1765358965161,-150.0,0.00012304,2]
[398073953,1765358965180,-150.0,0.00012304,2]
[398073954,1765358965200,-250.0,0.00012534,2]
[398073955,1765358965219,-474.54978353,0.00012558,2]
[398073969,1765359022373,-999.0,0.00012882,3]
[398073970,1765359030640,-525.45021647,0.00012558,2]
[398073971,1765359030662,-253.0,0.00012558,2]
[398073972,1765359030682,-199.94850002,0.00012753,2]
[398073973,1765359030702,-1200.0,0.00012852,2]
[398073974,1765359030722,-300.0,0.00012853,2]
[398073975,1765359030742,-1200.0,0.00012853,2]
[398073976,1765359030764,-300.0,0.00012853,2]
[398073977,1765359030784,-4037.60128351,0.00012854,2]
[398073993,1765359032257,-306.0,0.00012854,2]
[398073994,1765359032284,-5010.104616,0.00012854,2]
[398073995,1765359032296,-1969.58615104,0.00012854,2]
[398073996,1765359032322,-1162.87151196,0.00012854,2]
[398073997,1765359032335,-254.20263874,0.00012854,2]
[398073998,1765359032347,-525.74328535,0.00012854,2]
[398073999,1765359032358,-1337.70986208,0.00012854,2]
[398074000,1765359032370,-1430.27065132,0.00012854,2]
[398074001,1765359032380,-1109.3,0.00013154,2]
[398074002,1765359032390,-1185.69847462,0.00013208,2]
[398074004,1765359037808,-254.20263874,0.000132,2]
[398074005,1765359037817,-3799.54997229,0.00013208,2]
[398074006,1765359037828,-23970.38,0.0001325,2]
[398074007,1765359037838,-1003.21374351,0.000133,2]
[398074008,1765359037848,-628.658,0.000133,2]
[398074009,1765359037857,-163.02136126,0.000133,2]
[398074010,1765359037867,-150.0,0.00013315,2]
[398074011,1765359037876,-2751.0,0.00013316,2]
[398074012,1765359037886,-158.4875068,0.00013351,2]
[398074013,1765359037896,-6168.25572111,0.00013352,2]
[398074015,1765359037934,-103210.26607797,0.00013352,2]
[398074156,1765359039786,-1466.62214,0.00013352,2]
[398074158,1765359039797,-902.83007491,0.00013352,2]
[398074161,1765359039841,-8903.56890921,0.00013352,2]
[398074176,1765359040056,-4467.73862887,0.00013352,2]
[398074177,1765359040112,-1289.58444956,0.00013352,2]
[398074178,1765359040123,-463.42,0.00013352,2]
[398074180,1765359042752,-45597.15965942,0.00013352,2]
[398074181,1765359042963,-32835.65285422,0.00013352,2]
[398074182,1765359042976,-1000.0,0.00013352,2]
[398074183,1765359043069,-716.73120004,0.00013352,2]
[398074190,1765359045890,-259.20000166,0.00013352,2]
[398074191,1765359046048,-866.21280004,0.00013352,2]
[398074199,1765359446348,181.00205829,0.00013758,7]
[398074203,1765360086077,5524.0,0.00014,5]
[398074204,1765360117469,5521.0,0.00014,5]
[398074210,1765360231894,-199.327029,0.00012242,2]
[398074211,1765360231904,-199.7929778,0.00012273,2]
[398074212,1765360231914,-263.16412715,0.00012304,2]
[398074213,1765360231923,-158.92668608,0.00012304,2]
[398074214,1765360231933,-208.13240735,0.00012304,2]
[398074215,1765360231944,-150.0,0.00012304,2]
[398074216,1765360231953,-1023.06128741,0.00012367,2]
[398074217,1765360232054,-176.93871259,0.00012367,2]
[398074218,1765360232063,-4971.61,0.00012368,2]
[398074219,1765360232073,-195.0,0.00012374,2]
[398074220,1765360232082,-172.06,0.00012444,2]
[398074221,1765360232091,-500.0,0.00012537,2]
[398074222,1765360232100,-300.0,0.000127,2]
[398074224,1765360232110,-300.0,0.000127,2]
[398074226,1765360232119,-1180.09,0.00012701,2]
[398074228,1765360232130,-422.33813602,0.00012781,2]
[398074230,1765360232139,-150.0,0.00012781,2]
[398074231,1765360232148,-200.0,0.00012785,2]
[398074234,1765360232158,-1000.0,0.00012881,3]
[398074235,1765360232167,-848.0,0.00012926,2]
[398074238,1765360232177,-166.65,0.00012939,2]
[398074240,1765360232186,-386.0,0.00013014,2]
[398074242,1765360232196,-2437.11816007,0.00013039,2]
[398074244,1765360232207,-269.7213,0.00013109,2]
[398074246,1765360232215,-223.05970687,0.0001315,2]
[398074249,1765360232225,-2751.37826778,0.0001315,2]
[398074251,1765360232234,-806.6609,0.0001316,2]
[398074254,1765360232243,-150.0,0.00013208,2]
[398074256,1765360232252,-301.107492,0.00013208,2]
[398074258,1765360232262,-173.15965844,0.00013208,2]
[398074259,1765360232271,-500.0,0.00013208,2]
[398074260,1765360232280,-500.0,0.00013208,2]
[398074261,1765360232291,-500.0,0.00013208,2]
[398074262,1765360232300,-500.0,0.00013208,2]
[398074263,1765360232309,-500.0,0.00013208,2]
[398074264,1765360232317,-500.0,0.00013208,2]
[398074265,1765360232326,-500.0,0.00013208,2]
[398074266,1765360232335,-500.0,0.00013208,2]
[398074267,1765360232344,-500.0,0.00013208,2]
[398074268,1765360232353,-500.0,0.00013208,2]
[398074269,1765360232362,-500.0,0.00013208,2]
[398074270,1765360232370,-500.0,0.00013208,2]
[398074271,1765360232379,-500.0,0.00013208,2]
[398074272,1765360232388,-500.0,0.00013208,2]
[398074273,1765360232397,-500.0,0.00013208,2]
[398074274,1765360232406,-500.0,0.00013208,2]
[398074275,1765360232415,-500.0,0.00013208,2]
[398074276,1765360232423,-500.0,0.00013208,2]
[398074277,1765360232432,-500.0,0.00013208,2]
[398074278,1765360232442,-500.0,0.00013208,2]
[398074279,1765360232450,-500.0,0.00013208,2]
[398074280,1765360232459,-598.0591766,0.00013208,2]
[398074281,1765360232468,-500.0,0.00013208,2]
[398074282,1765360232482,-500.0,0.00013208,2]
[398074283,1765360232491,-500.0,0.00013208,2]
[398074284,1765360232499,-500.0,0.00013208,2]
[398074285,1765360232508,-500.0,0.00013208,2]
[398074286,1765360232520,-500.0,0.00013208,2]
[398074287,1765360232529,-500.0,0.00013208,2]
[398074288,1765360232538,-500.0,0.00013208,2]
[398074289,1765360232547,-500.0,0.00013208,2]
[398074290,1765360232555,-500.0,0.00013208,2]
[398074291,1765360232565,-500.0,0.00013208,2]
[398074292,1765360232573,-500.0,0.00013208,2]
[398074293,1765360232582,-500.0,0.00013208,2]
[398074294,1765360232591,-500.0,0.00013208,2]
[398074295,1765360232600,-500.0,0.00013208,2]
[398074296,1765360232609,-500.0,0.00013208,2]
[398074297,1765360232618,-500.0,0.00013208,2]
[398074298,1765360232627,-500.0,0.00013208,2]
[398074299,1765360232636,-500.0,0.00013208,2]
[398074300,1765360232645,-500.0,0.00013208,2]
[398074301,1765360232654,-500.0,0.00013208,2]
[398074302,1765360232662,-500.0,0.00013208,2]
[398074303,1765360232671,-609.80591767,0.00013208,2]
[398074304,1765360232680,-500.0,0.00013208,2]
[398074305,1765360232688,-500.0,0.00013208,2]
[398074306,1765360232697,-500.0,0.00013208,2]
[398074307,1765360232706,-500.0,0.00013208,2]
[398074308,1765360232715,-499.99999999,0.00013208,2]
[398074309,1765360232724,-175.53389484,0.00013209,2]
[398074310,1765360232733,-51579.43197239,0.00013209,2]
[398074311,1765360232745,-10139.78815208,0.00013209,2]
[398074312,1765360232756,-15336.33692181,0.00013209,2]
[398074313,1765360232767,-370.54535004,0.00013209,2]
[398074317,1765360237893,-1058.3124,0.00013209,2]
[398074318,1765360237906,-25589.40779901,0.00013209,2]
[398074319,1765360237948,-3527.65124464,0.00013209,2]
[398074320,1765360238108,-302.69033,0.00013209,2]
[398074324,1765360239901,-5351.05097677,0.00013209,2]
[398074325,1765360239913,-1269.9727187,0.00013209,2]
[398074326,1765360239957,-15416.23346765,0.00013209,2]
[398074327,1765360240065,-258.18475482,0.00013209,2]
[398074328,1765360240119,-629800.39391209,0.00013209,2]
[398074329,1765360240129,-1000.0,0.00013252,2]
[398074330,1765360240139,-2500.0,0.00013252,2]
[398074331,1765360240148,-502.927,0.00013308,2]
[398074332,1765360240158,-111599.8816915,0.00013309,2]
[398074333,1765360240167,-1978.12289971,0.00013309,2]
[398074335,1765360240334,-464.47,0.00013309,2]
[398074427,1765360242966,-861.54211389,0.00013309,2]
[398074428,1765360242975,-171.86,0.00013316,2]
[398074429,1765360242985,-209.2476631,0.00013344,2]
[398074430,1765360242995,-1000.0,0.00013351,2]
[398074431,1765360243005,-849.0,0.00013404,2]
[398074432,1765360243015,-520.0,0.00013425,2]
[398074433,1765360243025,-250.0,0.00013466,2]
[398074434,1765360243035,-273.35392901,0.00013504,2]
[398074435,1765360243048,-2045.39356299,0.00013504,2]
[398074436,1765360243060,-432.6307757,0.00013504,2]
[398074437,1765360243070,-195.0,0.00013535,2]
[398074438,1765360243080,-207.27282447,0.00013535,2]
[398074439,1765360243092,-46.0224185,0.00013535,2]
[398074440,1765360243104,-200.0,0.00013598,2]
[398074441,1765360243114,-207.4,0.00013598,2]
[398074442,1765360243124,-178.32503027,0.00013598,2]
[398074443,1765360243134,-709.13428334,0.00013598,2]
[398074444,1765360243242,-9.72889412,0.00013598,2]
[398074446,1765360243575,-582.13682254,0.00013598,2]
[398074447,1765360243585,-403.62475427,0.00013598,2]
[398074448,1765360243626,-400.32727715,0.00013598,2]
[398074449,1765360243635,-928.45146006,0.00013598,2]
[398074450,1765360243645,-156.01200939,0.00013598,2]
[398074451,1765360243657,-281.5700391,0.00013598,2]
[398074452,1765360243667,-533.88981491,0.00013598,2]
[398074453,1765360243676,-720.78854626,0.00013598,2]
[398074455,1765360243685,-300.0,0.00013598,2]
[398074457,1765360243695,-194.2602944,0.00013598,2]
[398074459,1765360243704,-4798.0293,0.00013598,2]
[398074461,1765360243714,-1680.0,0.00013604,2]
[398074463,1765360243723,-501.0,0.00013644,2]
[398074465,1765360243732,-1333.79749929,0.00013671,2]
[398074467,1765360243743,-308.3761898,0.00013688,2]
[398074469,1765360243752,-500.0,0.00013697,2]
[398074472,1765360243766,-240.93012699,0.00013697,2]
[398074473,1765360243775,-156.37673977,0.00013697,2]
[398074476,1765360243804,-104.55619664,0.00013697,2]
[398074477,1765360243813,-414.2118033,0.00013697,2]
[398074478,1765360243823,-354.65879474,0.00013697,2]
[398074479,1765360243832,-500.0,0.00013698,2]
[398074480,1765360243841,-500.0,0.00013698,2]
[398074481,1765360243850,-404.81777296,0.00013698,2]
[398074500,1765360245856,-95.18222704,0.00013698,2]
[398074501,1765360245865,-458.11483759,0.00013698,2]
[398074502,1765360245876,-41.88516241,0.00013698,2]
[398074503,1765360245886,-500.0,0.00013698,2]
[398074504,1765360245895,-500.0,0.00013698,2]
[398074505,1765360245904,-117.41483759,0.00013698,2]
[398074506,1765360246170,-382.58516241,0.00013698,2]
[398074507,1765360246179,-528.19,0.00013698,2]
[398074508,1765360246188,-341.74795513,0.00013698,2]
[398074510,1765360823702,5524.0,0.00012,5]
[398074511,1765360855406,5524.0,0.00012,5]
[398074512,1765360887056,5524.0,0.000119,5]
[398074513,1765360918745,5524.0,0.000119,5]
[398074514,1765360950420,5524.0,0.000117,5]
[398074515,1765360951510,76123.0,0.00011,2]
[398074516,1765360982198,5524.0,0.000117,5]
[398074525,1765361432115,-421.84463633,0.00011999,3]
[398074526,1765361432134,-578.15536367,0.00011999,3]
[398074527,1765361432144,-250.0,0.00012151,2]
[398074528,1765361432155,-251.0,0.00012304,2]
[398074529,1765361432164,-150.0,0.00012304,2]
[398074530,1765361432174,-150.0,0.00012304,2]
[398074531,1765361432184,-250.0,0.00012431,2]
[398074532,1765361432194,-1541.7,0.00012485,2]
[398074533,1765361432204,-4651.1,0.00012702,2]
[398074534,1765361432214,-150.0,0.00012844,2]
[398074535,1765361432225,-1000.0,0.0001288,3]
[398074536,1765361432236,-151.0,0.00013006,2]
[398074537,1765361432247,-1200.0,0.00013008,2]
[398074538,1765361432257,-2201.10261416,0.00013009,2]
[398074539,1765361432266,-605.87682235,0.00013009,2]
[398074540,1765361432276,-81656.59805919,0.00013009,2]
[398074541,1765361432331,-113692.05192174,0.00013009,2]
[398074542,1765361432342,-6776.74780783,0.00013009,2]
[398074593,1765361438149,-554.65,0.00012449,2]
[398074594,1765361438160,-500.0,0.00013008,2]
[398074595,1765361438171,-500.0,0.00013008,2]
[398074596,1765361438181,-360.98059177,0.00013008,2]
[398074597,1765361438191,-500.0,0.00013008,2]
[398074598,1765361438201,-500.0,0.00013008,2]
[398074599,1765361438211,-500.0,0.00013008,2]
[398074600,1765361438221,-89636.84915621,0.00013009,2]
[398074601,1765361438233,-689.13686145,0.00013009,2]
[398074602,1765361438261,-2712.34442816,0.00013009,2]
[398074603,1765361438308,-6000.0,0.00013009,2]
[398074604,1765361438320,-254.643,0.00013009,2]
[398074706,1765361440146,-3194.191,0.00013009,2]
[398074707,1765361440200,-4823.69043218,0.00013009,2]
[398074708,1765361440309,-323580.89423324,0.00013009,2]
[398074709,1765361440319,-2500.0,0.00013009,2]
[398074710,1765361440328,-150.0,0.00013107,2]
[398074711,1765361440337,-1000.0,0.00013109,2]
[398074712,1765361440347,-250.0,0.00013199,2]
[398074713,1765361440359,-2201.10261416,0.00013379,2]
[398074714,1765361440368,-467.23,0.000134,2]
[398074715,1765361440378,-1589.0,0.0001352,2]
[398074716,1765361440387,-813.0,0.00013547,2]
[398074717,1765361440395,-67825.9770438,0.00013592,2]
[398074718,1765361440404,-1978.1228997,0.00013592,2]
[398074719,1765361440413,-87672.5361174,0.00013592,2]
[398074720,1765361440424,-1147.8599471,0.00013592,2]
[398074721,1765361440434,-403.62475427,0.00013664,2]
[398074722,1765361440443,-533.88981491,0.00013664,2]
[398074723,1765361440453,-1301.0,0.00013664,2]
[398074724,1765361440464,-582.13682254,0.00013664,2]
[398074725,1765361440475,-205.58412653,0.00013688,2]
[398074726,1765361440486,-1000.0,0.00013697,2]
[398074727,1765361440495,-255.19495518,0.00013697,2]
[398074728,1765361440505,-248.26115632,0.00013697,2]
[398074729,1765361440515,-500.0,0.00013697,2]
[398074730,1765361440524,-491.25240669,0.00013697,2]
[398074731,1765361440535,-2598.0,0.00013698,2]
[398074732,1765361440544,-500.62937319,0.00013698,2]
[398074733,1765361440554,-500.0,0.00013698,2]
[398074734,1765361440563,-411.78961174,0.00013698,2]
[398074735,1765361440572,-500.0,0.00013698,2]
[398074736,1765361440582,-500.0,0.00013698,2]
[398074737,1765361440592,-500.0,0.00013698,2]
[398074738,1765361440601,-500.0,0.00013698,2]
[398074739,1765361440613,-500.0,0.00013698,2]
[398074740,1765361440622,-200.0,0.00013698,2]
[398074741,1765361440631,-500.0,0.00013698,2]
[398074742,1765361440641,-500.0,0.00013698,2]
[398074743,1765361440650,-500.0,0.00013698,2]
[398074744,1765361440660,-500.0,0.00013698,2]
[398074745,1765361440669,-351.86280168,0.00013698,2]
[398074746,1765361440678,-500.0,0.00013698,2]
[398074748,1765361440688,-500.0,0.00013698,2]
[398074749,1765361440697,-500.0,0.00013698,2]
[398074750,1765361440706,-585.23,0.00013698,2]
[398074751,1765361440716,-500.0,0.00013698,2]
[398074752,1765361440725,-500.0,0.00013698,2]
[398074753,1765361440735,-500.0,0.00013698,2]
[398074754,1765361440744,-500.0,0.00013698,2]
[398074755,1765361440754,-500.0,0.00013698,2]
[398074756,1765361440763,-500.0,0.00013698,2]
[398074757,1765361440772,-701.45,0.00013698,2]
[398074758,1765361440782,-500.0,0.00013698,2]
[398074759,1765361440790,-500.0,0.00013698,2]
[398074760,1765361440800,-500.0,0.00013698,2]
[398074761,1765361440809,-500.0,0.00013698,2]
[398074762,1765361440818,-500.0,0.00013698,2]
[398074763,1765361440827,-500.0,0.00013698,2]
[398074764,1765361440837,-500.0,0.00013698,2]
[398074765,1765361440846,-500.0,0.00013698,2]
[398074766,1765361440857,-516.03,0.00013698,2]
[398074767,1765361440870,-500.0,0.00013698,2]
[398074768,1765361440879,-500.0,0.00013698,2]
[398074769,1765361440888,-500.0,0.00013698,2]
[398074770,1765361440898,-500.0,0.00013698,2]
[398074771,1765361440907,-500.0,0.00013698,2]
[398074772,1765361440916,-500.0,0.00013698,2]
[398074773,1765361440926,-229.0448645,0.00013698,2]
[398074774,1765361440937,-500.0,0.00013698,2]
[398074775,1765361440947,-504.59980683,0.00013698,2]
[398074776,1765361440956,-500.0,0.00013698,2]
[398074777,1765361440965,-500.0,0.00013698,2]
[398074778,1765361440974,-500.0,0.00013698,2]
[398074779,1765361440983,-288.75248209,0.00013698,2]
[398074780,1765361440992,-548.48,0.00013698,2]
[398074781,1765361441002,-500.0,0.00013698,2]
[398074782,1765361441012,-500.0,0.00013698,2]
[398074783,1765361441021,-500.0,0.00013698,2]
[398074784,1765361441031,-500.0,0.00013698,2]
[398074785,1765361441043,-500.0,0.00013698,2]
[398074786,1765361441062,-500.0,0.00013698,2]
[398074787,1765361441073,-152.967229,0.00013698,2]
[398074788,1765361441087,-500.0,0.00013698,2]
[398074789,1765361441096,-589.21,0.00013698,2]
[398074790,1765361441107,-500.0,0.00013698,2]
[398074791,1765361441117,-500.0,0.00013698,2]
[398074792,1765361441126,-683.69,0.00013698,2]
[398074793,1765361441136,-500.0,0.00013698,2]
[398074794,1765361441145,-500.0,0.00013698,2]
[398074795,1765361441154,-504.85379038,0.00013698,2]
[398074796,1765361441163,-500.0,0.00013698,2]
[398074797,1765361441173,-500.0,0.00013698,2]
[398074798,1765361441183,-500.0,0.00013698,2]
[398074799,1765361441192,-500.0,0.00013698,2]
[398074800,1765361441204,-700.43,0.00013698,2]
[398074801,1765361441214,-500.0,0.00013698,2]
[398074802,1765361441224,-500.0,0.00013698,2]
[398074803,1765361441234,-500.0,0.00013698,2]
[398074804,1765361441244,-500.0,0.00013698,2]
[398074805,1765361441254,-500.0,0.00013698,2]
[398074806,1765361441265,-500.0,0.00013698,2]
[398074807,1765361441278,-500.0,0.00013698,2]
[398074808,1765361441288,-500.0,0.00013698,2]
[398074809,1765361441297,-500.0,0.00013698,2]
[398074810,1765361441306,-500.0,0.00013698,2]
[398074811,1765361441317,-500.0,0.00013698,2]
[398074812,1765361441327,-500.0,0.00013698,2]